[Event "47th GRE-chT 2019"]
[Site "Patra"]
[Date "2019.07.03"]
[Round "3.20"]
[White "Merkos, Thomas"]
[Black "Karavitaki, Antonia"]
[Result "1-0"]
[ECO "B27"]
[WhiteElo "1665"]
[BlackElo "1481"]
[Annotator "NA"]
[PlyCount "113"]
[EventDate "2019.07.02"]
[EventCountry "GRE"]
[SourceTitle "playchess.com"]
[Source "ChessBase"]
[SourceQuality "1"]
[TimeControl "5400+30"]

1. e4 {[%emt 0:00:00]} c5 {[%emt 0:00:00]} 2. Nf3 {[%emt 0:00:00]} g6 {[%emt 0:00:00]} 3. d4 {[%emt 0:00:00]} cxd4 {[%emt 0:00:00]} 4. Qxd4 {[%emt 0:02:35]} Nf6 {[%emt 0:00:20]} 5. e5 {[%emt 0:02:22]} Nc6 {[%emt 0:00:09]} 6. Qa4 {[%emt 0:05:22]} Ng8 {[%emt 0:07:01]} 7. Bf4 {[%emt 0:03:25]} Bg7 {[%emt 0:00:47]} 8. Bc4 {[%emt 0:02:45]} Nh6 {[%emt 0:07:01]} 9. Nc3 {[%emt 0:03:54]} O-O {[%emt 0:04:21]} 10. O-O-O {[%emt 0:05:12]} Qa5 {[%emt 0:01:36]} 11. Qxa5 {[%emt 0:00:22]} Nxa5 {[%emt 0:00:35]} 12. Bb5 {[%emt 0:02:13]} Nc6 {[%emt 0:01:27]} 13. Nd5 {[%emt 0:13:35]} e6 {[%emt 0:07:12]} 14. Nc7 {[%emt 0:01:18]} Rb8 {[%emt 0:21:16]} 15. h3 {[%emt 0:12:15]} Nf5 {[%emt 0:17:33]} 16. g4 {[%emt 0:08:38]} Nh6 {[%emt 0:01:18]} 17. Bg5 {[%emt 0:08:52]} Kh8 {[%emt 0:08:00]} 18. Bxc6 {[%emt 0:04:55]} bxc6 {[%emt 0:00:53]} 19. Be7 {[%emt 0:05:08]} Rg8 {[%emt 0:02:16]} 20. Rhe1 {[%emt 0:05:43]} Bf8 {[%emt 0:08:43]} 21. Bf6+ {[%emt 0:00:30]} Bg7 {[%emt 0:02:41]} 22. Bxg7+ {[%emt 0:00:27]} Kxg7 {[%emt 0:01:36]} 23. Re3 {[%emt 0:08:03]} Rd8 {[%emt 0:02:55]} 24. Ra3 {[%emt 0:02:39]} Rb7 {[%emt 0:00:07]} 25. Na6 {[%emt 0:00:50]} Ng8 {[%emt 0:00:51]} 26. Nc5 {[%emt 0:00:15]} Rb5 {[%emt 0:00:53]} 27. Ne4 {[%emt 0:01:17]} a6 {[%emt 0:00:33]} 28. Nd6 {[%emt 0:00:47]} Rd5 {[%emt 0:01:19]} 29. Nxc8 {[%emt 0:00:07]} Rxc8 {[%emt 0:00:25]} 30. Rxa6 {[%emt 0:00:33]} Ne7 {[%emt 0:00:51]} 31. Ra7 {[%emt 0:00:11]} Rd8 {[%emt 0:01:10]} 32. c4 {[%emt 0:00:44]} Rxd1+ {[%emt 0:00:00]} 33. Kxd1 {[%emt 0:00:39]} h6 {[%emt 0:01:42]} 34. b4 {[%emt 0:00:11]} Kf8 {[%emt 0:00:24]} 35. Kd2 {[%emt 0:00:10]} Ke8 {[%emt 0:00:51]} 36. Kc3 {[%emt 0:00:09]} Rb8 {[%emt 0:00:11]} 37. a4 {[%emt 0:00:10]} Nc8 {[%emt 0:00:49]} 38. Ra5 {[%emt 0:01:26]} Nb6 {[%emt 0:00:39]} 39. Ra6 {[%emt 0:00:22]} Kd8 {[%emt 0:00:00]} 40. Nd2 {[%emt 0:00:00]} Kc7 {[%emt 0:00:00]} 41. Ra7+ {[%emt 0:00:00]} Kd8 {[%emt 0:00:00]} 42. Ne4 {[%emt 0:00:00]} Nc8 {[%emt 0:00:00]} 43. Ra6 {[%emt 0:00:00]} Kc7 {[%emt 0:00:00]} 44. b5 {[%emt 0:00:00]} Rb7 {[%emt 0:00:00]} 45. Kb4 {[%emt 0:00:00]} g5 {[%emt 0:00:00]} 46. c5 {[%emt 0:00:00]} cxb5 {[%emt 0:00:00]} 47. axb5 {[%emt 0:00:00]} Rb8 {[%emt 0:00:00]} 48. Nd6 {[%emt 0:00:00]} Nxd6 {[%emt 0:00:00]} 49. exd6+ {[%emt 0:00:00]} Kc8 {[%emt 0:00:00]} 50. c6 {[%emt 0:00:00]} dxc6 {[%emt 0:00:00]} 51. Rxc6+ {[%emt 0:00:00]} Kd7 {[%emt 0:00:00]} 52. Kc5 {[%emt 0:00:00]} f5 {[%emt 0:00:00]} 53. Rc7+ {[%emt 0:00:00]} Kd8 {[%emt 0:00:00]} 54. Kc6 {[%emt 0:00:00]} f4 {[%emt 0:00:00]} 55. b6 {[%emt 0:00:00]} f3 {[%emt 0:00:00]} 56. b7 {[%emt 0:00:00]} e5 {[%emt 0:00:00]} 57. Rh7 {[%emt 0:00:00]} 1-0

[Event "47th GRE-chT 2019"]
[Site "Patra"]
[Date "2019.07.03"]
[Round "3.20"]
[White "Peikos, Rafail"]
[Black "Stathatos, Alexandros"]
[Result "0-1"]
[ECO "D02"]
[WhiteElo "1309"]
[BlackElo "1348"]
[Annotator "NA"]
[PlyCount "70"]
[EventDate "2019.07.02"]
[EventCountry "GRE"]
[SourceTitle "playchess.com"]
[Source "ChessBase"]
[SourceQuality "1"]
[TimeControl "5400+30"]

1. Nf3 {[%emt 0:00:00]} d5 {[%emt 0:00:35]} 2. d4 {[%emt 0:00:00]} Nf6 {[%emt 0:00:32]} 3. g3 {[%emt 0:00:11]} c5 {[%emt 0:01:22]} 4. e3 {[%emt 0:02:53]} Nc6 {[%emt 0:02:20]} 5. Bg2 {[%emt 0:01:34]} Bg4 {[%emt 0:02:57]} 6. O-O {[%emt 0:02:21]} e6 {[%emt 0:02:52]} 7. b3 {[%emt 0:01:56]} cxd4 {[%emt 0:02:48]} 8. exd4 {[%emt 0:00:07]} Ne4 {[%emt 0:02:04]} 9. Bb2 {[%emt 0:03:06]} Be7 {[%emt 0:02:30]} 10. Nc3 {[%emt 0:05:11]} f5 {[%emt 0:03:15]} 11. Ne2 {[%emt 0:02:58]} g5 {[%emt 0:11:23]} 12. Ne5 {[%emt 0:04:18]} Nxe5 {[%emt 0:02:36]} 13. dxe5 {[%emt 0:00:10]} Bc5 {[%emt 0:01:44]} 14. Qe1 {[%emt 0:04:14]} Qb6 {[%emt 0:01:30]} 15. Bxe4 {[%emt 0:03:29]} fxe4 {[%emt 0:01:40]} 16. Kg2 {[%emt 0:01:22]} Bf3+ {[%emt 0:04:18]} 17. Kg1 {[%emt 0:00:14]} Bg4 {[%emt 0:00:04]} 18. Kg2 {[%emt 0:00:05]} Bf3+ {[%emt 0:02:34]} 19. Kg1 {[%emt 0:00:05]} e3 {[%emt 0:00:08]} 20. fxe3 {[%emt 0:02:59]} Bxe3+ {[%emt 0:00:05]} 21. Rf2 {[%emt 0:00:04]} Bxf2+ {[%emt 0:03:54]} 22. Qxf2 {[%emt 0:00:06]} Bxe2 {[%emt 0:00:34]} 23. Bd4 {[%emt 0:00:10]} Qa6 {[%emt 0:01:47]} 24. c4 {[%emt 0:01:10]} Bh5 {[%emt 0:06:39]} 25. Qf6 {[%emt 0:05:10]} Rf8 {[%emt 0:02:45]} 26. Qxg5 {[%emt 0:00:25]} Bg6 {[%emt 0:05:33]} 27. Bc5 {[%emt 0:00:54]} Rf7 {[%emt 0:00:53]} 28. Rf1 {[%emt 0:02:03]} Qc6 {[%emt 0:02:37]} 29. Bd6 {[%emt 0:07:11]} Rxf1+ {[%emt 0:07:36]} 30. Kxf1 {[%emt 0:00:07]} Qd7 {[%emt 0:00:16]} 31. cxd5 {[%emt 0:01:16]} Qf7+ {[%emt 0:00:35]} 32. Kg1 {[%emt 0:00:08]} exd5 {[%emt 0:01:28]} 33. b4 {[%emt 0:04:34]} Rc8 {[%emt 0:04:35]} 34. Qe3 {[%emt 0:02:10]} Be4 {[%emt 0:03:42]} 35. Qg5 {[%emt 0:02:07]} Rc2 {[%emt 0:01:57]} 0-1

[Event "47th GRE-chT 2019"]
[Site "Patra"]
[Date "2019.07.03"]
[Round "3.23"]
[White "Spyropoulos, Nikolaos"]
[Black "Georgiev, Krum"]
[Result "1-0"]
[ECO "B84"]
[WhiteElo "2404"]
[BlackElo "2323"]
[Annotator "NA"]
[PlyCount "55"]
[EventDate "2019.07.02"]
[EventCountry "GRE"]
[SourceTitle "playchess.com"]
[Source "ChessBase"]
[SourceQuality "1"]
[TimeControl "5400+30"]

1. e4 {[%emt 0:00:00]} c5 {[%emt 0:00:00]} 2. Nf3 {[%emt 0:00:00]} d6 {[%emt 0:00:00]} 3. d4 {[%emt 0:00:00]} cxd4 {[%emt 0:00:00]} 4. Nxd4 {[%emt 0:00:00]} Nf6 {[%emt 0:00:00]} 5. Nc3 {[%emt 0:00:00]} a6 {[%emt 0:00:04]} 6. Be2 {[%emt 0:00:37]} e6 {[%emt 0:00:16]} 7. Be3 {[%emt 0:00:25]} Qc7 {[%emt 0:00:28]} 8. g4 {[%emt 0:01:23]} h6 {[%emt 0:01:06]} 9. a3 {[%emt 0:10:21]} b5 {[%emt 0:06:57]} 10. h4 {[%emt 0:07:53]} Bb7 {[%emt 0:00:40]} 11. Bf3 {[%emt 0:04:52]} Nfd7 {[%emt 0:19:32]} 12. g5 {[%emt 0:22:03]} Ne5 {[%emt 0:03:01]} 13. g6 {[%emt 0:09:14]} Nbc6 {[%emt 0:00:58]} 14. gxf7+ {[%emt 0:03:14]} Qxf7 {[%emt 0:00:30]} 15. Bh5 {[%emt 0:03:40]} g6 {[%emt 0:01:24]} 16. Be2 {[%emt 0:00:14]} O-O-O {[%emt 0:20:19]} 17. Qd2 {[%emt 0:07:58]} Bg7 {[%emt 0:05:53]} 18. O-O-O {[%emt 0:00:41]} Nxd4 {[%emt 0:20:17]} 19. Bxd4 {[%emt 0:00:44]} Nf3 {[%emt 0:02:04]} 20. Bxf3 {[%emt 0:01:36]} Bxd4 {[%emt 0:00:03]} 21. Qxd4 {[%emt 0:00:21]} Qxf3 {[%emt 0:00:03]} 22. Rhg1 {[%emt 0:01:26]} Rhg8 {[%emt 0:00:19]} 23. a4 {[%emt 0:01:32]} bxa4 {[%emt 0:07:28]} 24. Qa7 {[%emt 0:02:15]} a3 {[%emt 0:06:43]} 25. Rg3 {[%emt 0:05:43]} Qf6 {[%emt 0:02:09]} 26. Kb1 {[%emt 0:08:15]} d5 {[%emt 0:01:24]} 27. Na4 {[%emt 0:03:28]} Rd7 {[%emt 0:01:14]} 28. Rb3 {[%emt 0:03:36]} 1-0

[Event "47th GRE-chT 2019"]
[Site "Patra"]
[Date "2019.07.03"]
[Round "3.26"]
[White "Louka, Magdalini"]
[Black "Stratigi, Evangelia"]
[Result "0-1"]
[ECO "B48"]
[WhiteElo "1766"]
[BlackElo "1624"]
[Annotator "NA"]
[PlyCount "52"]
[EventDate "2019.07.02"]
[EventCountry "GRE"]
[SourceTitle "playchess.com"]
[Source "ChessBase"]
[SourceQuality "1"]
[TimeControl "5400+30"]

1. e4 {[%emt 0:00:00]} c5 {[%emt 0:00:00]} 2. Nf3 {[%emt 0:00:10]} e6 {[%emt 0:00:00]} 3. d4 {[%emt 0:00:21]} cxd4 {[%emt 0:00:00]} 4. Nxd4 {[%emt 0:00:17]} Nc6 {[%emt 0:00:16]} 5. Nc3 {[%emt 0:00:53]} Qc7 {[%emt 0:00:40]} 6. Be3 {[%emt 0:00:26]} a6 {[%emt 0:00:50]} 7. Qd2 {[%emt 0:04:56]} Nf6 {[%emt 0:02:15]} 8. f4 {[%emt 0:05:16]} b5 {[%emt 0:04:35]} 9. e5 {[%emt 0:02:03]} Ng4 {[%emt 0:00:20]} 10. Bg1 {[%emt 0:11:24]} Bb4 {[%emt 0:02:48]} 11. O-O-O {[%emt 0:04:09]} O-O {[%emt 0:03:03]} 12. h3 {[%emt 0:00:22]} Nh6 {[%emt 0:00:58]} 13. a3 {[%emt 0:06:22]} Be7 {[%emt 0:06:06]} 14. Be3 {[%emt 0:06:25]} Nxd4 {[%emt 0:00:39]} 15. Bxd4 {[%emt 0:01:16]} Nf5 {[%emt 0:02:59]} 16. Bf2 {[%emt 0:07:06]} b4 {[%emt 0:10:46]} 17. axb4 {[%emt 0:00:16]} Bxb4 {[%emt 0:06:44]} 18. g4 {[%emt 0:02:16]} Ne7 {[%emt 0:01:03]} 19. Bg2 {[%emt 0:03:53]} Rb8 {[%emt 0:08:27]} 20. Qd3 {[%emt 0:09:10]} Rd8 {[%emt 0:10:15]} 21. Ne4 {[%emt 0:06:25]} Qa5 {[%emt 0:01:52]} 22. Kb1 {[%emt 0:02:54]} Nd5 {[%emt 0:09:09]} 23. Be3 {[%emt 0:09:34]} Bb7 {[%emt 0:04:14]} 24. Rhg1 {[%emt 0:03:43]} Bc6 {[%emt 0:03:05]} 25. Bd2 {[%emt 0:02:18]} Bxd2 {[%emt 0:00:21]} 26. Qxd2 {[%emt 0:01:10]} Rxb2+ {[%emt 0:01:00]} 0-1

[Event "47th GRE-chT 2019"]
[Site "Patra"]
[Date "2019.07.03"]
[Round "3.27"]
[White "Kaliontzaki, Argyro Evanthia"]
[Black "Kouta, Antonia"]
[Result "0-1"]
[ECO "A37"]
[WhiteElo "1324"]
[BlackElo "1762"]
[Annotator "NA"]
[PlyCount "52"]
[EventDate "2019.07.02"]
[EventCountry "GRE"]
[SourceTitle "playchess.com"]
[Source "ChessBase"]
[SourceQuality "1"]
[TimeControl "5400+30"]

1. c4 {[%emt 0:00:00]} c5 {[%emt 0:00:00]} 2. g3 {[%emt 0:00:00]} Nc6 {[%emt 0:00:49]} 3. Bg2 {[%emt 0:00:00]} g6 {[%emt 0:00:27]} 4. Nc3 {[%emt 0:00:12]} Bg7 {[%emt 0:00:44]} 5. Nf3 {[%emt 0:00:30]} e6 {[%emt 0:02:02]} 6. O-O {[%emt 0:02:36]} Nge7 {[%emt 0:01:53]} 7. d3 {[%emt 0:04:09]} O-O {[%emt 0:02:46]} 8. Be3 {[%emt 0:03:41]} Nd4 {[%emt 0:06:01]} 9. Qd2 {[%emt 0:08:52]} Nef5 {[%emt 0:08:25]} 10. Rab1 {[%emt 0:06:29]} Nxe3 {[%emt 0:12:19]} 11. fxe3 {[%emt 0:00:24]} Nf5 {[%emt 0:02:02]} 12. d4 {[%emt 0:06:48]} Bh6 {[%emt 0:13:03]} 13. Nd1 {[%emt 0:13:45]} d5 {[%emt 0:06:21]} 14. cxd5 {[%emt 0:06:36]} exd5 {[%emt 0:01:19]} 15. Qd3 {[%emt 0:17:13]} Nxg3 {[%emt 0:08:52]} 16. hxg3 {[%emt 0:03:43]} Bf5 {[%emt 0:00:24]} 17. Qa3 {[%emt 0:04:59]} Bxb1 {[%emt 0:00:48]} 18. dxc5 {[%emt 0:00:50]} Re8 {[%emt 0:02:59]} 19. b4 {[%emt 0:03:16]} Bc2 {[%emt 0:02:50]} 20. Qc3 {[%emt 0:06:02]} Bxd1 {[%emt 0:07:25]} 21. Rxd1 {[%emt 0:00:09]} Rxe3 {[%emt 0:03:14]} 22. Qd4 {[%emt 0:01:21]} Rxe2 {[%emt 0:01:48]} 23. Qxd5 {[%emt 0:00:42]} Qe7 {[%emt 0:02:42]} 24. Qd3 {[%emt 0:04:37]} Re8 {[%emt 0:03:51]} 25. a4 {[%emt 0:02:07]} Qf6 {[%emt 0:01:35]} 26. Qb1 {[%emt 0:01:41]} Rxg2+ {[%emt 0:02:40]} 0-1

[Event "47th GRE-chT 2019"]
[Site "Patra"]
[Date "2019.07.03"]
[Round "3.28"]
[White "Alexiadis, Hristos"]
[Black "Karousos-Theodorakis, Nikolaos"]
[Result "1-0"]
[ECO "C55"]
[WhiteElo "2344"]
[BlackElo "2304"]
[Annotator "NA"]
[PlyCount "172"]
[EventDate "2019.07.02"]
[EventCountry "GRE"]
[SourceTitle "playchess.com"]
[Source "ChessBase"]
[SourceQuality "1"]
[TimeControl "5400+30"]

1. e4 {[%emt 0:00:00]} e5 {[%emt 0:00:00]} 2. Nf3 {[%emt 0:00:00]} Nc6 {[%emt 0:00:00]} 3. Bc4 {[%emt 0:00:00]} Nf6 {[%emt 0:00:49]} 4. d3 {[%emt 0:00:11]} h6 {[%emt 0:01:36]} 5. Nbd2 {[%emt 0:00:26]} d6 {[%emt 0:00:06]} 6. c3 {[%emt 0:00:10]} g6 {[%emt 0:00:52]} 7. Nf1 {[%emt 0:01:30]} Bg7 {[%emt 0:00:08]} 8. Ng3 {[%emt 0:02:50]} O-O {[%emt 0:01:03]} 9. h3 {[%emt 0:03:55]} Na5 {[%emt 0:00:09]} 10. Bb5 {[%emt 0:02:01]} a6 {[%emt 0:00:07]} 11. Ba4 {[%emt 0:00:22]} b5 {[%emt 0:00:07]} 12. Bc2 {[%emt 0:00:46]} c5 {[%emt 0:00:37]} 13. O-O {[%emt 0:06:13]} Bb7 {[%emt 0:00:32]} 14. Re1 {[%emt 0:02:04]} Re8 {[%emt 0:07:11]} 15. a3 {[%emt 0:22:04]} Rc8 {[%emt 0:03:01]} 16. b4 {[%emt 0:01:38]} Nc6 {[%emt 0:08:49]} 17. Bb3 {[%emt 0:05:00]} a5 {[%emt 0:17:58]} 18. bxc5 {[%emt 0:00:11]} a4 {[%emt 0:00:07]} 19. Ba2 {[%emt 0:00:56]} dxc5 {[%emt 0:00:42]} 20. Rb1 {[%emt 0:04:11]} Ba6 {[%emt 0:02:05]} 21. Nh4 {[%emt 0:19:23]} b4 {[%emt 0:00:05]} 22. axb4 {[%emt 0:01:14]} Bxd3 {[%emt 0:02:12]} 23. Rb2 {[%emt 0:02:56]} c4 {[%emt 0:02:00]} 24. Rd2 {[%emt 0:06:56]} Ne7 {[%emt 0:04:17]} 25. Qxa4 {[%emt 0:01:21]} Ra8 {[%emt 0:00:33]} 26. Qd1 {[%emt 0:00:31]} Qc7 {[%emt 0:00:43]} 27. Nf3 {[%emt 0:01:27]} Ra7 {[%emt 0:09:58]} 28. Rb2 {[%emt 0:02:16]} Rd8 {[%emt 0:00:06]} 29. Bd2 {[%emt 0:00:53]} Rda8 {[%emt 0:01:58]} 30. Bb1 {[%emt 0:00:05]} Ra1 {[%emt 0:02:12]} 31. Qc1 {[%emt 0:00:47]} Kh7 {[%emt 0:01:06]} 32. Re3 {[%emt 0:04:52]} Qd6 {[%emt 0:02:06]} 33. Kh2 {[%emt 0:02:13]} Nd7 {[%emt 0:03:39]} 34. Qg1 {[%emt 0:02:53]} Nb6 {[%emt 0:01:50]} 35. Re1 {[%emt 0:00:06]} Na4 {[%emt 0:00:49]} 36. Ra2 {[%emt 0:00:11]} Rxa2 {[%emt 0:00:05]} 37. Bxa2 {[%emt 0:00:37]} Nxc3 {[%emt 0:01:01]} 38. Bxc4 {[%emt 0:01:09]} Bxc4 {[%emt 0:01:48]} 39. Bxc3 {[%emt 0:00:48]} Nc6 {[%emt 0:00:00]} 40. Rd1 {[%emt 0:00:00]} Qe7 {[%emt 0:00:00]} 41. Qe1 {[%emt 0:00:00]} Rb8 {[%emt 0:00:00]} 42. Rb1 {[%emt 0:00:00]} Rb5 {[%emt 0:00:00]} 43. Qd2 {[%emt 0:00:00]} Bf8 {[%emt 0:00:00]} 44. Nf1 {[%emt 0:00:00]} Qd6 {[%emt 0:00:00]} 45. Qxd6 {[%emt 0:00:00]} Bxd6 {[%emt 0:00:00]} 46. Ne3 {[%emt 0:00:00]} Be6 {[%emt 0:00:00]} 47. Nc2 {[%emt 0:00:00]} f6 {[%emt 0:00:00]} 48. Nd2 {[%emt 0:00:00]} Rb7 {[%emt 0:00:00]} 49. Ra1 {[%emt 0:00:00]} Nd4 {[%emt 0:00:00]} 50. Ra6 {[%emt 0:01:40]} Rd7 {[%emt 0:00:00]} 51. Bxd4 {[%emt 0:00:06]} exd4+ {[%emt 0:00:00]} 52. g3 {[%emt 0:01:35]} d3 {[%emt 0:00:00]} 53. Nd4 {[%emt 0:01:29]} Bf7 {[%emt 0:00:00]} 54. Nc6 {[%emt 0:03:47]} Kg7 {[%emt 0:00:00]} 55. Kg2 {[%emt 0:01:37]} Rb7 {[%emt 0:00:00]} 56. Nd8 {[%emt 0:00:03]} Rd7 {[%emt 0:00:00]} 57. Nc6 {[%emt 0:00:05]} Rb7 {[%emt 0:00:00]} 58. Kf3 {[%emt 0:01:38]} Bxb4 {[%emt 0:00:00]} 59. Nxb4 {[%emt 0:00:03]} Rxb4 {[%emt 0:00:00]} 60. Ke3 {[%emt 0:00:54]} h5 {[%emt 0:00:00]} 61. Kxd3 {[%emt 0:00:42]} Rb7 {[%emt 0:00:00]} 62. Ke3 {[%emt 0:00:16]} Rc7 {[%emt 0:01:02]} 63. h4 {[%emt 0:00:10]} Rc3+ {[%emt 0:01:32]} 64. Kd4 {[%emt 0:00:04]} Rc2 {[%emt 0:00:08]} 65. Kd3 {[%emt 0:00:03]} Rc7 {[%emt 0:00:06]} 66. Rd6 {[%emt 0:00:34]} Ra7 {[%emt 0:00:09]} 67. Ke3 {[%emt 0:00:21]} Ra3+ {[%emt 0:02:47]} 68. Kf4 {[%emt 0:01:04]} Ra7 {[%emt 0:01:03]} 69. Nf3 {[%emt 0:00:14]} Ra2 {[%emt 0:00:07]} 70. Rd2 {[%emt 0:01:00]} Rxd2 {[%emt 0:00:05]} 71. Nxd2 {[%emt 0:00:07]} Be6 {[%emt 0:00:08]} 72. Nf3 {[%emt 0:00:46]} Bb3 {[%emt 0:00:23]} 73. Nd4 {[%emt 0:00:20]} Bc4 {[%emt 0:00:46]} 74. Nc6 {[%emt 0:00:29]} Ba2 {[%emt 0:01:06]} 75. e5 {[%emt 0:00:40]} fxe5+ {[%emt 0:00:05]} 76. Kxe5 {[%emt 0:00:12]} Kf7 {[%emt 0:00:15]} 77. Nd8+ {[%emt 0:00:21]} Ke7 {[%emt 0:00:06]} 78. Nb7 {[%emt 0:00:42]} Bb3 {[%emt 0:00:05]} 79. Nc5 {[%emt 0:00:15]} Ba2 {[%emt 0:00:03]} 80. Kf4 {[%emt 0:01:35]} Bb1 {[%emt 0:00:35]} 81. Kg5 {[%emt 0:00:39]} Kd6 {[%emt 0:00:10]} 82. Nb3 {[%emt 0:00:51]} Kd5 {[%emt 0:00:14]} 83. Nd2 {[%emt 0:00:27]} Bf5 {[%emt 0:01:23]} 84. Kf6 {[%emt 0:01:29]} Bc2 {[%emt 0:01:05]} 85. Nf3 {[%emt 0:00:23]} Ke4 {[%emt 0:00:18]} 86. Ne1 {[%emt 0:01:13]} Kd5 {[%emt 0:11:35]} 1-0

[Event "47th GRE-chT 2019"]
[Site "Patra"]
[Date "2019.07.03"]
[Round "3.29"]
[White "Damianou, Ioannis"]
[Black "Loukisas, Dimitrios"]
[Result "0-1"]
[ECO "A26"]
[WhiteElo "2154"]
[BlackElo "1898"]
[Annotator "NA"]
[PlyCount "68"]
[EventDate "2019.07.02"]
[EventCountry "GRE"]
[SourceTitle "playchess.com"]
[Source "ChessBase"]
[SourceQuality "1"]
[TimeControl "5400+30"]

1. c4 {[%emt 0:00:00]} Nf6 {[%emt 0:00:00]} 2. Nc3 {[%emt 0:00:00]} g6 {[%emt 0:00:00]} 3. e4 {[%emt 0:00:00]} e5 {[%emt 0:00:23]} 4. g3 {[%emt 0:01:56]} Bg7 {[%emt 0:00:23]} 5. Bg2 {[%emt 0:00:05]} O-O {[%emt 0:00:08]} 6. Nge2 {[%emt 0:00:08]} Nc6 {[%emt 0:00:23]} 7. O-O {[%emt 0:00:11]} d6 {[%emt 0:03:03]} 8. d3 {[%emt 0:00:08]} Be6 {[%emt 0:03:48]} 9. h3 {[%emt 0:03:29]} Qd7 {[%emt 0:03:20]} 10. Kh2 {[%emt 0:00:07]} Nh5 {[%emt 0:00:28]} 11. Be3 {[%emt 0:01:47]} f5 {[%emt 0:01:54]} 12. exf5 {[%emt 0:00:12]} gxf5 {[%emt 0:00:14]} 13. f4 {[%emt 0:00:45]} Bh6 {[%emt 0:07:06]} 14. Qd2 {[%emt 0:05:20]} Qg7 {[%emt 0:08:41]} 15. fxe5 {[%emt 0:07:23]} Bxe3 {[%emt 0:00:15]} 16. Qxe3 {[%emt 0:00:06]} dxe5 {[%emt 0:00:57]} 17. Nd5 {[%emt 0:03:28]} Kh8 {[%emt 0:05:00]} 18. Rg1 {[%emt 0:15:10]} Rae8 {[%emt 0:06:36]} 19. Qd2 {[%emt 0:09:52]} Bc8 {[%emt 0:01:09]} 20. Rad1 {[%emt 0:06:39]} Nd4 {[%emt 0:01:58]} 21. Bh1 {[%emt 0:00:09]} c6 {[%emt 0:01:24]} 22. Ndc3 {[%emt 0:01:30]} f4 {[%emt 0:09:33]} 23. gxf4 {[%emt 0:01:39]} Qd7 {[%emt 0:00:25]} 24. Qe3 {[%emt 0:05:00]} Nxf4 {[%emt 0:03:21]} 25. Rgf1 {[%emt 0:16:36]} Ndxe2 {[%emt 0:13:11]} 26. Nxe2 {[%emt 0:00:36]} Nxe2 {[%emt 0:01:44]} 27. Qxe2 {[%emt 0:03:25]} Qxh3+ {[%emt 0:01:04]} 28. Kg1 {[%emt 0:00:06]} Rg8+ {[%emt 0:01:27]} 29. Bg2 {[%emt 0:00:15]} Rxg2+ {[%emt 0:01:28]} 30. Qxg2 {[%emt 0:00:20]} Rg8 {[%emt 0:00:07]} 31. Rd2 {[%emt 0:04:05]} Rxg2+ {[%emt 0:02:12]} 32. Rxg2 {[%emt 0:00:30]} Bf5 33. Rd2 {[%emt 0:02:11]} Bc8 {[%emt 0:00:02]} 34. Rg2 {[%emt 0:00:00]} Bf5 {[%emt 0:01:34]} 0-1

[Event "47th GRE-chT 2019"]
[Site "Patra"]
[Date "2019.07.03"]
[Round "3.30"]
[White "Souchleris, Nikolaos"]
[Black "Christodoulakis, Michail"]
[Result "0-1"]
[ECO "C45"]
[WhiteElo "1204"]
[BlackElo "1224"]
[Annotator "NA"]
[PlyCount "104"]
[EventDate "2019.07.02"]
[EventCountry "GRE"]
[SourceTitle "playchess.com"]
[Source "ChessBase"]
[SourceQuality "1"]
[TimeControl "5400+30"]

1. e4 {[%emt 0:00:00]} e5 {[%emt 0:00:00]} 2. Nf3 {[%emt 0:00:00]} Nc6 {[%emt 0:00:00]} 3. d4 {[%emt 0:00:00]} exd4 {[%emt 0:00:00]} 4. Nxd4 {[%emt 0:00:00]} Nf6 {[%emt 0:00:00]} 5. Nxc6 {[%emt 0:00:00]} bxc6 {[%emt 0:00:00]} 6. e5 {[%emt 0:00:29]} Qe7 {[%emt 0:00:03]} 7. Qe2 {[%emt 0:00:07]} Nd5 {[%emt 0:00:13]} 8. c4 {[%emt 0:00:12]} Nb6 {[%emt 0:00:19]} 9. b3 {[%emt 0:13:56]} Qe6 {[%emt 0:10:10]} 10. f4 {[%emt 0:01:47]} g6 {[%emt 0:03:37]} 11. Qf3 {[%emt 0:03:59]} Bg7 {[%emt 0:04:17]} 12. Ba3 {[%emt 0:10:19]} Bb7 {[%emt 0:06:34]} 13. Qh3 {[%emt 0:00:55]} Qxh3 {[%emt 0:00:08]} 14. gxh3 {[%emt 0:05:00]} d6 {[%emt 0:00:28]} 15. Bb2 {[%emt 0:00:37]} Nd7 {[%emt 0:04:33]} 16. Nc3 {[%emt 0:00:24]} dxe5 {[%emt 0:00:20]} 17. fxe5 {[%emt 0:01:01]} Nxe5 {[%emt 0:02:44]} 18. O-O-O {[%emt 0:00:57]} O-O {[%emt 0:02:34]} 19. Bg2 {[%emt 0:02:05]} Rad8 {[%emt 0:06:01]} 20. Kb1 {[%emt 0:02:44]} Rfe8 {[%emt 0:15:14]} 21. Rhe1 {[%emt 0:01:51]} Rxd1+ {[%emt 0:00:12]} 22. Rxd1 {[%emt 0:01:42]} Bc8 {[%emt 0:04:01]} 23. Re1 {[%emt 0:01:10]} Bf5+ {[%emt 0:01:11]} 24. Ka1 {[%emt 0:00:48]} Rd8 {[%emt 0:18:19]} 25. Rd1 {[%emt 0:03:06]} Rxd1+ {[%emt 0:00:08]} 26. Nxd1 {[%emt 0:00:54]} c5 {[%emt 0:01:45]} 27. Ne3 {[%emt 0:01:35]} Be6 {[%emt 0:01:46]} 28. Nd5 {[%emt 0:00:51]} Bxd5 {[%emt 0:00:14]} 29. Bxd5 {[%emt 0:00:12]} Nd3 {[%emt 0:00:42]} 30. Bxg7 {[%emt 0:00:08]} Kxg7 {[%emt 0:00:40]} 31. Bc6 {[%emt 0:00:40]} Nf4 {[%emt 0:00:58]} 32. Bd7 {[%emt 0:00:19]} f5 {[%emt 0:00:25]} 33. h4 {[%emt 0:00:20]} Kh6 {[%emt 0:03:39]} 34. Kb2 {[%emt 0:00:14]} Ng2 {[%emt 0:01:57]} 35. Kc2 {[%emt 0:00:28]} Nxh4 {[%emt 0:00:19]} 36. Kd3 {[%emt 0:00:25]} Nf3 {[%emt 0:02:37]} 37. b4 {[%emt 0:00:13]} Ne5+ {[%emt 0:00:11]} 38. Ke3 {[%emt 0:00:06]} Nxd7 {[%emt 0:00:18]} 39. b5 {[%emt 0:00:09]} Ne5 {[%emt 0:00:00]} 40. b6 {[%emt 0:00:00]} cxb6 {[%emt 0:00:00]} 41. Kf2 {[%emt 0:00:00]} Nxc4 {[%emt 0:00:00]} 42. Kg3 {[%emt 0:00:00]} Nd6 {[%emt 0:00:00]} 43. Kf3 {[%emt 0:00:00]} c4 {[%emt 0:00:00]} 44. Ke2 {[%emt 0:00:00]} Kg5 {[%emt 0:00:00]} 45. Ke3 {[%emt 0:00:00]} f4+ {[%emt 0:00:00]} 46. Ke2 {[%emt 0:00:00]} c3 {[%emt 0:00:00]} 47. Kd1 {[%emt 0:00:00]} f3 {[%emt 0:00:00]} 48. Ke1 {[%emt 0:00:00]} c2 {[%emt 0:00:00]} 49. Kf2 {[%emt 0:00:00]} c1=Q {[%emt 0:00:00]} 50. Kg3 {[%emt 0:00:00]} Qf4+ {[%emt 0:00:00]} 51. Kf2 {[%emt 0:55:47]} Ne4+ {[%emt 0:00:00]} 52. Kg1 {[%emt 0:00:00]} Qc1# {[%emt 0:00:00]} 0-1